{"text_format":"3","workbook":"xlsx","n_sheets":5,"sheets":["12월1주","12월2주","12월3주","12월4주(최종)","12월5주"],"not_rendered":{"images":1,"defined_names":2},"read":"whole","date_system":"1900"}

{"sheet":"12월1주","index":0,"n_rows":81,"n_cols":10,"rows_kept":81,"merged":[[1,3,1,7],[2,3,2,5],[43,3,43,7],[44,3,44,7]]}
[]
[{"$nulls":3},"*이번주 concept : 건강을 지키는 뿌리채소 음식(비트,당근,고구마,무,우엉,연근,감자,도라지,더덕,마늘,양파)"]
[]
[{"$nulls":5},"12월 1주 메뉴표"]
[{"$nulls":3},"월","화","수","목","금","토","일"]
[{"$nulls":3},"2015-11-30",{"$f":"D6+1","v":"2015-12-01"},"2015-12-02","2015-12-03","2015-12-04","2015-12-05","2015-12-06"]
[" ",null,null,"현미밥","추가밥","수수밥","기장밥","흑미밥","차조밥","수수밥"]
[{"$nulls":3},"조랭이떡국","단호박죽","아욱국","육개장","설렁탕","들깨수제비국","얼큰오징어국"]
[{"$nulls":3},"돈사태계란장조림","프렌치토스트","닭다리살볶음","고등어구이","스팸야채볶음","제육야채볶음","계란말이"]
[{"$nulls":3},"오이도라지무침","베이컨브로콜리볶음","오징어볼","부추당근전","양념깻잎지","생선까스&타르소스","꽁치구이&와사비장"]
[{"$nulls":3},"김구이"," ","고구마순나물/김부각","청경채나물","우엉조림/김구이","오이지무침","건파래볶음"]
[{"$nulls":3},"포기김치","포기김치","포기김치","포기김치","석박지","포기김치","포기김치"]
["조식",null,null,"찹쌀죽/크림스프","옥수수스프","찹쌀죽/야채스프","누룽지/양송이스프","찹쌀죽/크림스프","찹쌀죽","찹쌀죽"]
[{"$nulls":3},"꼬마치즈번(참)","*","순쌀소보로빵","모닝빵&딸기잼","미니크로와상(청)","식빵&딸기잼","단팥빵"]
[{"$nulls":3},"*","요플레","*","요플레","*","*","*"]
[{"$nulls":3},"콘푸로스트/코코팝스","아몬드후레이크/첵스","후르트링/그래놀라","콘푸로스트/스노우첵스","후르츠링/스페셜K","그래놀라/후르트링","첵스/아몬드후레이크"]
[" ",null,null,"양상추샐러드&키위D","양상추샐러드&딸기드레싱","양상추샐러드/사우젼D","양상추샐러드&유자D","양상추샐러드&오리엔탈D","양상추샐러드&요거트D","양상추샐러드&애플D"]
[{"$nulls":3},"우유/결명자차","우유/오렌지주스","우유/녹차","우유/보리차","우유/옥수수차","우유/둥글레차","우유/결명자차"]
[{"$nulls":3},"키위","바나나","오렌지","황도","방울토마토","사과 ","키위"]
[" ",null,null,"흑미밥","기장밥","보리밥","닭칼국수","스크램블볶음밥","기장밥","마파두부덮밥"]
[{"$nulls":3},"된장찌개","왕만두국","동태찌개","후리가케주먹밥","고구마스프","미역국","시금치된장국"]
[{"$nulls":3},"훈제오리야채볶음","삼치구이","햄계란찜","카레고로케&케찹","수제등심돈까스","쇠고기버섯볶음","탕수육&소스"]
[" ",null,null,"부추겉절이/무쌈","케일당근감자전","고추잡채&꽃빵","도토리묵야채무침","미니핫도그&케찹","연두부&양념장","치커리오이무침"]
[{"$nulls":3},"김말이튀김","멸치견과볶음","연근조림","*","오이피클","참나물무침","*"]
[{"$nulls":3},"포기김치","포기김치","깍두기","배추겉절이","포기김치","포기김치","포기김치"]
["중식",null,null,"쇠고기야채죽","녹두죽","잣죽","단팥죽","단호박죽","찹쌀죽","찹쌀죽"]
[{"$nulls":3},"방울토마토","오렌지","키위","귤","사과","오렌지","바나나"]
[{"$nulls":3},"*"," 후식","*","초코비스켓타르트","*","*","*"]
[{"$nulls":3},"양상추샐러드&오리엔탈D","양배추샐러드&요거트D","시저샐러드","양배추샐러드&키위D","콘슬로우","양배추샐러드&파인요거트D","양상추샐러드&코울슬로D"]
[{"$nulls":3},"감귤주스","오미자차","레몬에이드","자스민차","게토레이","당근주스","석류주스"]
[" ",null,null,"차조밥","쇠고기뿌리채소밥","중화풍버섯덮밥","완두콩밥","오므라이스&데미소스","현미밥","차조밥"]
[{"$nulls":3},"버섯들깨국","순두부찌개","미소시루","콩비지찌개","꼬치어묵국","근대된장국","유부다시마국"]
[{"$nulls":3},"닭볶음탕","돈육메추리알장조림","칠리깐쇼새우","오징어떡볶음","메밀야채무침","돼지묵은지찜","닭갈비&우동사리"]
[{"$nulls":3},"수제소시지&머스타드","감자채볶음","진미채볶음","제육강정&간장풍소스","단무지","알감자고추조림","스크렘블에그"]
[{"$nulls":3},"시금치무침","*","*","양파부추무침","*","가지양파볶음","숙주나물무침"]
[{"$nulls":3},"포기김치","깍두기","포기김치","깍두기","포기김치","깍두기","포기김치"]
["석식",null,null,"찹쌀죽","찹쌀죽","찹쌀죽","찹쌀죽","찹쌀죽","찹쌀죽","찹쌀죽"]
[{"$nulls":3},"모닝빵&딸기잼","붕어빵","식빵&버터","모닝빵&딸기잼","식빵&버터","오예스","식빵&딸기잼"]
["후식",null,null,"*","*","후식","*","짜요짜요","*","*"]
[{"$nulls":3},"플레인요거트/시리얼","*","플레인요거트/시리얼","*"]
[{"$nulls":3},"양배추샐러드&참깨드레싱","양상추샐러드&발사믹D","단호박샐러드","양상추샐러드&파인D","마카로니볶음","양상추샐러드&키위D","양배추샐러드&발사믹D"]
[{"$nulls":3},"귤","사과","방울토마토","오렌지","키위","방울토마토","사과"]
[{"$nulls":3},"보리차","망고주스","유자차","포도주스","메밀차","녹차","보리차"]
[{"$nulls":3},"[특정 식품에 알러지(Allergy)가 있는 분들께서는 메뉴표를 보시고 급식 사무실로 문의하여 주시기 바랍니다]"]
{"$rows_empty":36}
[{"$nulls":3},"http://www.ezday.co.kr/bbs/view_board.html?q_id_info=298&q_sq_board=2869385","쇠고기뿌리채소밥"]

{"sheet":"12월2주","index":1,"n_rows":46,"n_cols":10,"rows_kept":46,"merged":[[0,3,1,6],[44,3,44,7],[45,3,45,7]]}
[{"$nulls":3},"컨셉메뉴 : 면역력을 지키는 슈퍼푸드 7가지 (버섯,당근,무,단호박,사과,고등어,감)"]
[]
[]
[{"$nulls":5},"12월 2주 메뉴표"]
[{"$nulls":3},"월","화","수","목","금","토","일"]
[{"$nulls":3},"2013-12-08","2013-12-09","2013-12-10","2013-12-11","2013-12-12","2013-12-13","2013-12-14"]
[" ",null,null,"흑향미밥","현미밥","완두콩밥","검정콩밥","차조밥","보리밥","현미밥"]
[{"$nulls":3},"북어채국","열무된장국","물만두국","감자양파국","매콤어묵국","들깨미역국","돈육김치찌개"]
[{"$nulls":3},"참치김치볶음","돈사태단호박찜","어묵야채볶음","꽁치무조림","쇠고기야채볶음","닭도리탕","스팸야채볶음"]
[{"$nulls":3},"계란햄전","진미채양배추무침","취나물무침","비엔나구이&머스타드소스","콩자반","데친두부&김치볶음","숙주나물무침"]
[{"$nulls":3},"김구이","김구이","마시는요플레","김구이","김구이","김구이","김구이"]
[{"$nulls":3},"깍두기","포기김치","포기김치","포기김치","포기김치","깍두기","깍두기"]
["조식",null,null,"누룽지죽/크림스프","찹쌀죽/야채스프","누룽지죽/옥수수스프","찹쌀죽/양송이스프","찹쌀죽/크림스프","찹쌀죽","찹쌀죽"]
[{"$nulls":3},"모닝빵&딸기잼","화이트롤케익","모닝빵&버터","식빵&딸기잼","초코머핀","식빵&딸기잼","모닝빵&버터"]
[{"$nulls":3},"콘후레이크","아몬드후레이크","콘후레이크","스페셜K","콘푸로스트"," 그래놀라","아몬드후레이크"]
[{"$nulls":3},"초코첵스","후르트링","그래놀라","아몬드후레이크","코코팝스","후르트링","스페셜K"]
[" ",null,null,"감자샐러드","양상추샐러드/키위D","양배추샐러드/흑임자D","고구마샐러드","양배추샐러드/사우젼D","양상추샐러드&참깨D","단호박샐러드"]
[{"$nulls":3},"우유/결명자차","우유/오렌지쥬스","우유/녹차","우유/보리차","우유/옥수수차","우유/둥글레차","우유/결명자차"]
[{"$nulls":3},"방울토마토","바나나","사과","키위","귤","파인애플","방울토마토"]
[" ",null,null,"차수수밥","꽁보리밥","멸치주먹밥","김밥볶음밥","흑향미밥","기장밥","강낭콩밥"]
[{"$nulls":3},"뚝불고기","청국장찌개","당근스프","온메밀면","도가니탕","달래된장찌개","설렁탕&소면"]
[{"$nulls":3},"크림새우","매콤불닭","함박스테이크&데미소스","찹쌀탕수육&소스","김치부추전","돈육김치볶음","오징어까스&타르타르소스"]
[" ",null,null,"단호박팥찜","가자미카레구이","피자한조각","오이깍둑무침","고구마맛탕","오색진미전","스크렘블에그"]
[{"$nulls":3},"*","미나리무생채","야채피클","*","호박새우젓볶음","브로콜리숙회&초장","*"]
[{"$nulls":3},"포기김치","깍두기","포기김치","포기김치","석박지","깍두기","포기김치"]
["중식",null,null,"참치야채죽","흑임자죽","단팥죽","잣죽","단호박죽","찹쌀죽","찹쌀죽"]
[{"$nulls":3},"오렌지","사과","키위","귤","바나나","단감","키위"]
[{"$nulls":3},"*","초코빼빼츄","*","아이스경단","*","*","짜요짜요"]
[{"$nulls":3},"양상추샐러드/오리엔탈D","양배추샐러드/파인D","블루베리샐러드&요거트드레싱","양배추샐러드/키위D","양상추샐러드/코울슬로D","양배추샐러드/사우젼D","양상추샐러드/발사믹D"]
[{"$nulls":3},"감귤주스","둥글레차","블루레몬에이드(재)","꿀대추차","게토레이","오렌지주스","망고주스"]
[" ",null,null,"치킨마요덮밥","차조밥","치즈콘볶음밥","수수밥","소고기주먹밥","흑향미밥","참치야채비빔밥&고추장소스"]
[{"$nulls":3},"미소시루","나가사끼짬뽕국","수제비국","호박채맑은국","잔치국수","햄섞어찌개","장터국"]
[{"$nulls":3},"콩나물제육볶음","목살버섯볶음","베이컨우동볶음","짜장찜닭","치킨치즈떡볶이","고등어구이","닭봉구이&바베큐소스"]
[{"$nulls":3},"멸치꽈리고추볶음","골뱅이야채무침","연근호두조림","동그랑땡전&간장","단무지","소고기잡채","수제소시지야채볶음"]
[{"$nulls":3},"*","시금치무침","*","파프리카콩나물무침","*"," 치커리양파무침","*"]
[{"$nulls":3},"깍두기","포기김치","깍두기","알타리김치","깍두기","깍두기","포기김치"]
["석식",null,null,"찹쌀죽","찹쌀죽","찹쌀죽","찹쌀죽","찹쌀죽","찹쌀죽","찹쌀죽"]
[{"$nulls":3},"미니치즈케익","모닝빵&딸기잼","식빵&딸기잼","모닝빵&딸기잼","식빵&딸기잼",null,"식빵&딸기잼"]
[{"$nulls":3},"*","다노니노요거트","*","마시는젤리","요구르트","*","*"]
[" ",null,null,"고구마샐러드","양상추샐러드/사우젼D","양배추샐러드/참깨D","양상추샐러드/오리엔탈D","양배추샐러드/흑임자D","양상추샐러드/발사믹D","양배추샐러드/양파D"]
[" ",null,null,"단감","키위","파인애플","바나나","사과","귤","바나나"]
[{"$nulls":3},"석류주스","*","포도주스","유자차","*","오미자차","녹차"]
["간식",null,null,"초코칩브라우니","닭꼬치&소스","피자호빵","김치만두&고기만두"]
[" ",null,null,"바나나우유","초코우유","모닝시리얼우유","사과주스"]
[]
[{"$nulls":3},"[특정 식품에 알러지(Allergy)가 있는 분들께서는 메뉴표를 보시고 급식 사무실로 문의하여 주시기 바랍니다]"]

{"sheet":"12월3주","index":2,"n_rows":83,"n_cols":10,"rows_kept":83,"merged":[[0,3,1,6],[44,3,44,7],[45,3,45,7],[46,3,46,7]]}
[{"$nulls":3},"컨셉메뉴 : 수족냉증에 좋은 음식(인삼,미나리,마늘,양파,쑥,땅콩)"]
[]
[]
[{"$nulls":5},"12월 3주 메뉴표"]
[{"$nulls":3},"월","화","수","목","금","토","일"]
[{"$nulls":3},"2013-12-15",{"$f":"D6+1","v":"2013-12-16"},"2013-12-17","2013-12-18","2013-12-19","2013-12-20","2013-12-21"]
[" ",null,null,"현미밥","차조밥","수수밥","기장밥","흑향미밥","차조밥","수수밥"]
[{"$nulls":3},"감자양파국","북어채국","사골우거지국","순두부찌개","오징어무국","육개장","참치김치찌개"]
[{"$nulls":3},"돈육계란장조림","꽁치구이*와사비장","돈육김치볶음","닭살바베큐볶음","제육떡볶음","고등어무조림","계란후라이"]
[{"$nulls":3},"청경채겉절이","도톰동그랑땡","탕평채","오이무침","명엽채간장조림","감자채볶음","고기산적볶음"]
[{"$nulls":3},"김구이","블루베리스무디","김구이","김구이","김구이","김구이","김구이"]
[{"$nulls":3},"포기김치","포기김치","깍두기","포기김치","포기김치","포기김치","깍두기"]
["조식",null,null,"찹쌀죽/크림스프","누룽지/옥수수스프","찹쌀죽/야채스프","누룽지/양송이스프","찹쌀죽/크림스프","찹쌀죽","찹쌀죽"]
[{"$nulls":3},"모닝빵&딸기잼","식빵&버터","후레쉬크림빵","모닝빵&딸기잼","꿀호떡","식빵&딸기잼","소프트치즈케익"]
[{"$nulls":3},"콘후레이크","아몬드후레이크","콘후레이크","스페셜K","콘푸로스트","아몬드후레이크","콘푸레이크"]
[{"$nulls":3},"코코팝스","후르트링","첵스","후르츠코코넛그래놀라","초코첵스","후르트링","코코팝스"]
[" ",null,null,"단호박샐러드","꽃맛살샐러드","양배추샐러드/양파D","고구마샐러드","양배추샐러드/사우젼D","양상추샐러드&참깨D","양배추샐러드&딸기요거트D"]
[{"$nulls":3},"우유/결명자차","우유/메밀차","우유/당근주스","우유/보리차","우유/옥수수차","우유/둥글레차","우유/결명자차"]
[{"$nulls":3},"키위","사과","귤","바나나","방울토마토","황도","키위"]
[" ",null,null,"흑향미밥","참치야채비빔밥","굴소스야채볶음밥","대나무죽통밥","기장밥","보리밥","현미밥"]
[{"$nulls":3},"매콤쌀국수","계란부추국","튀김우동","얼큰수제비국","장터국","미역국","된장찌개"]
[{"$nulls":3},"닭봉구이","닭살김치깐풍기","깻잎육전","갈치구이","등갈비김치찜","고구마닭조림","불고기낙지볶음"]
[" ",null,null,"찐만두","느타리버섯어묵볶음","미나리오징어무침","베이컨계란찜","고로케&케찹","베이컨호박볶음","버섯잡채"]
[{"$nulls":3},"락교","*","*","알감자조림","땅콩조림","잣멸치볶음","참나물무침"]
[{"$nulls":3},"포기김치","알타리김치","포기김치","포기김치","깍두기","포기김치","포기김치"]
["중식",null,null,"후리가케계란죽","단팥죽","전복죽","호두죽","단호박죽","찹쌀죽","찹쌀죽"]
[{"$nulls":3},"귤","오렌지","키위","바나나","사과","오렌지","바나나"]
[{"$nulls":3},"*","홍삼블루베리","런던비틀빵","*","사과잼쿠키","마시는젤리","*"]
[{"$nulls":3},"양상추샐러드&키위D","오리엔탈냉파스타","양상추샐러드&딸기요거트D","참치샐러드","고구마샐러드","양배추샐러드&파인요거트D","양상추샐러드&코울슬로D"]
[{"$nulls":3},"토마토주스","카모마일","포도주스","매실차","게토레이","사과주스","석류주스"]
[" ",null,null,"수수밥","완두콩밥","현미밥","불고기주먹밥","닭가슴살카레라이스","스팸마요주먹밥","차조밥"]
[{"$nulls":3},"어묵국","부대찌개&라면사리","영양반계탕","당근양파크림스프","무다시마국","치즈계란라면","맑은우동국물"]
[{"$nulls":3},"묵은지갈비찜","우불고기","해물파전","순살돈까스&데미소스","쫄면야채무침","야채튀김&김말이튀김","후라이드치킨&파채"]
[{"$nulls":3},"왕새우튀김&타르타르s","가지버터구이","떡갈비조림","야채피클","비엔나야채볶음","단무지무침","두부양념조림"]
[{"$nulls":3},"고구마줄기볶음","*","콩나물무침","*","*","*","시금치무침"]
[{"$nulls":3},"깍두기","깍두기","석박지","포기김치","포기김치","포기김치","포기김치"]
["석식",null,null,"찹쌀죽","찹쌀죽","찹쌀죽","찹쌀죽","찹쌀죽","찹쌀죽","찹쌀죽"]
[{"$nulls":3},"식빵&딸기잼","크로와상샌드위치","식빵&딸기잼","갈릭스틱","모닝빵&딸기잼","식빵&딸기잼","초코머핀"]
["후식",null,null,"쁘띠첼","컵쥬스","짜요짜요","*","요구르트","*","*"]
[{"$nulls":3},"양배추샐러드&참깨D","감자샐러드","양배추샐러드&키위D","양상추샐러드&발사믹D","양배추샐러드&파인D","양상추샐러드&키위D","양배추샐러드&발사믹D"]
[{"$nulls":3},"바나나","방울토마토","귤","파인애플","키위","방울토마토","사과"]
[{"$nulls":3},"보리차","*","둥글레차","석류주스","옥수수차","녹차","보리차"]
["간식",null,null,"군고구마","짜장떡볶이","꿀떡&인절미","핫바&케찹"]
[" ",null,null,"모카우유","오렌지주스","드링킹요구르트","비요뜨"]
[{"$nulls":3},"수족냉증에 좋은 음식(인삼,미나리,마늘,양파,쑥,땅콩)"]
[{"$nulls":3},"[특정 식품에 알러지(Allergy)가 있는 분들께서는 메뉴표를 보시고 급식 사무실로 문의하여 주시기 바랍니다]"]
{"$rows_empty":36}
[{"$nulls":3},"http://www.ezday.co.kr/bbs/view_board.html?q_id_info=298&q_sq_board=2869385","쇠고기뿌리채소밥"]

{"sheet":"12월4주(최종)","index":3,"n_rows":82,"n_cols":10,"rows_kept":82,"merged":[[0,3,1,7],[43,3,43,7],[44,3,44,7],[45,3,45,7]]}
[{"$nulls":3},"컨셉메뉴 : 수족냉증에 좋은 음식(인삼,미나리,마늘,양파,쑥,땅콩)"]
[]
[]
[{"$nulls":5},"12월 4주 메뉴표"]
[{"$nulls":3},"월","화(가플콘서트)","수(진로페스티발)","목(방학식)","금(성탄절)","토","일"]
[{"$nulls":3},"2015-12-21",{"$f":"D6+1","v":"2015-12-22"},"2015-12-23",{"$f":"F6+1","v":"2015-12-24"},"2015-12-25","2015-12-26","2015-12-27"]
[" ",null,null,"보리밥","현미밥","흑향미밥","기장밥"]
[{"$nulls":3},"순두부찌개","콩나물국","콩가루배추국","육개장"]
[{"$nulls":3},"조기구이","제육야채볶음","소고기야채볶음","계란장조림"]
[{"$nulls":3},"베이컨야채볶음","오징어볼&타르소스","매콤두부조림","브로콜리/쭈구미숙회&초장"]
[{"$nulls":3},"알감자구이/김구이","시금치나물","고구마순볶음/김구이","진미채볶음"]
[{"$nulls":3},"깍두기","포기김치","깍두기","포기김치"]
["조식",null,null,"잣죽/크림스프","누룽지/야채스프","호두죽/크림스프","누룽지/양송이스프"]
[{"$nulls":3},"딸기미니쉘","식빵&버터","크림치즈소보루","모닝빵&딸기잼"]
[{"$nulls":3},"*","요플레(딸기맛)","*","요플레"]
[{"$nulls":3},"콘푸로스트/코코팝스","아몬드후레이크/첵스","후르트링/그래놀라","콘푸로스트/스노우첵스"]
[" ",null,null,"양배추샐러드&유자드레싱","콘슬로우","양상추샐러드/키위D","양상추샐러드/흑임자D"]
[{"$nulls":3},"우유/결명자차","우유/메밀차","우유/녹차","우유/보리차"]
[{"$nulls":3},"키위","사과","방울토마토","바나나"]
[" ",null,null,"잡곡밥","기장밥","렌틸콩밥","캘리포니아롤"]
[{"$nulls":3},"부대찌개&라면사리","한방갈비탕","미니유부우동","꽂게꼬치어묵탕"]
[{"$nulls":3},"파닭&소스","물파래전","커리소스&난","치즈떡볶이"]
[" ",null,null,"메추리알곤약장조림","탕평채","탄두리치킨","찰순대&소금"]
[{"$nulls":3},"오이무침","참나물무침","야채피클","단무지"]
[{"$nulls":3},"열무김치","석박지","포기김치","포기김치"]
["중식",null,null,"짬뽕죽","동지팥죽","단호박죽","새우야채죽"]
[{"$nulls":3},"바나나","단감","사과","귤"]
[{"$nulls":3},"쁘띠첼","수수팥경단","성탄케익","핫도그"]
[{"$nulls":3},"생크림단호박샐러드","양상추샐러드&딸기요거트D","펜네올리브샐러드","양상추샐러드/키위D"]
[{"$nulls":3},"유자차","감귤주스","레몬에이드","포카리스웨트"]
[" ",null,null,"완두콩밥","후리가케주먹밥","수수밥"]
[{"$nulls":3},"미역국","어니언스프","얼큰된장찌개"]
[{"$nulls":3},"돼지고기보쌈*야채쌈*쌈장","해물토마토스파게티","훈제오리구이&무쌈&머스타드"]
[{"$nulls":3},"녹두전","허니버터감자칩","탕수만두&후르츠소스"]
[{"$nulls":3},"취나물무침","야채피클","부추양파무침"]
[{"$nulls":3},"보쌈김치","포기김치","포기김치"]
["석식",null,null,"찹쌀죽","찹쌀죽","찹쌀죽"]
[{"$nulls":3},"쇼콜라샌드","모닝빵&딸기잼","쿠키앤크림슈"]
[{"$nulls":3},"*","코코넛망고스무디","허니레인보우"]
[{"$nulls":3},"플레인요거트&콘푸로스트","*","플레인요거트&첵스"]
[{"$nulls":3},"파스타샐러드","양상추샐러드&발사믹D","양상추샐러드&유자D"]
[{"$nulls":3},"방울토마토","귤","딸기"]
[{"$nulls":3},"포도주스","오미자차","*"]
[]
[{"$nulls":3},"[특정 식품에 알러지(Allergy)가 있는 분들께서는 메뉴표를 보시고 급식 사무실로 문의하여 주시기 바랍니다]"]
{"$rows_empty":36}
[{"$nulls":3},"http://www.ezday.co.kr/bbs/view_board.html?q_id_info=298&q_sq_board=2869385","쇠고기뿌리채소밥"]

{"sheet":"12월5주","index":4,"n_rows":83,"n_cols":10,"rows_kept":83,"merged":[[0,3,2,6],[44,3,44,7],[45,3,45,7],[46,3,46,7]]}
[{"$nulls":3},"컨셉메뉴 : 감기예방에 좋은 차(유자차,생강차,오미자차,매실차,감잎차…)"]
[]
[]
[{"$nulls":5},"12월 5주 메뉴표"]
[{"$nulls":3},"월(축제)","화(콘서트)","수(방학식)","목","금","토","일"]
[{"$nulls":3},"2014-12-29","2014-12-30",{"$f":"E6+1","v":"2014-12-31"},"2015-01-01","2015-01-02","2015-01-03","2015-01-04"]
[" ",null,null,"현미밥","추가밥","흑향미밥"]
[{"$nulls":3},"순두부찌개","영양닭죽","제육김치찌개"]
[{"$nulls":3},"꽈리고추메추리알장조림","계란후라이&베이컨구이","안동찜닭"]
[{"$nulls":3},"임연수구이","식빵&크림치즈","도라지오이무침"]
[{"$nulls":3},"김구이","요거트","김구이"]
[{"$nulls":3},"포기김치","포기김치","깍두기"]
["조식",null,null,"찹쌀죽/크림스프","양송이스프","찹쌀죽/옥수수스프"]
[{"$nulls":3},"모닝빵&딸기잼","*","모닝빵&딸기잼"]
[{"$nulls":3},"콘후레이크","아몬드후레이크","후르트링"]
[{"$nulls":3},"그래놀라","코코팝스","첵스"]
[" ",null,null,"고구마샐러드","양상추샐러드&발사믹드레싱","양상추샐러드&딸기요거트드레싱"]
[{"$nulls":3},"우유/유자차","우유/오렌지주스","우유/녹차"]
[{"$nulls":3},"귤","바나나","사과"]
[" ",null,null,"소시지오므라이스&데미소스","김밥","완두콩밥"]
[{"$nulls":3},"들깨미역국","미소라멘","호박고추장찌개"]
[{"$nulls":3},"비빔만두","새우튀김","훈제오리&부추겉절이&머스타드"]
[" ",null,null,"견과류잔멸치조림","단무지","동그랑땡&케찹"]
[{"$nulls":3},"*","*","숙주나물무침"]
[{"$nulls":3},"포기김치","포기김치","포기김치"]
["중식",null,null,"단팥죽","야채죽"]
[{"$nulls":3},"단감","귤","키위"]
[{"$nulls":3},"푸딩(후식)","초코비스켓타르트(푸)","*"]
[{"$nulls":3},"양배추샐러드&키위D","콘슬로우","양상추샐러드&발사믹D"]
[{"$nulls":3},"생강차","망고주스","매실차"]
[" ",null,null,"차조밥","불고기비빔밥"]
[{"$nulls":3},"건새우아욱국","미소시루"]
[{"$nulls":3},"등갈비오븐구이","닭윙간장구이"]
[{"$nulls":3},"치즈스틱","물파래전"]
[{"$nulls":3},"콩나물겨자채","*"]
[{"$nulls":3},"포기김치","포기김치"]
["석식",null,null,"찹쌀죽","찹쌀죽"]
[{"$nulls":3},"식빵&버터","맛있는빵"]
[{"$nulls":3},"후식","*"]
[{"$nulls":3},"푸질리양상추샐러드&발사믹D","양배추샐러드&참깨D"]
[{"$nulls":3},"키위","메론"]
[{"$nulls":3},"보리차","오미자차"]
["간식",null,null,"소세지바","조각피자"]
[" ",null,null,"비요뜨","음료수"]
[]
[{"$nulls":3},"[특정 식품에 알러지(Allergy)가 있는 분들께서는 메뉴표를 보시고 급식 사무실로 문의하여 주시기 바랍니다]"]
{"$rows_empty":36}
[{"$nulls":3},"http://www.ezday.co.kr/bbs/view_board.html?q_id_info=298&q_sq_board=2869385","쇠고기뿌리채소밥"]